[Event "Late-Titled-Tuesday-Blitz-October-10-2023"]
[Site "Chess.com"]
[Date "2023.10.10"]
[Round "1"]
[White "SchachmattTV_Tobi"]
[Black "canary2016"]
[Result "1-0"]
[WhiteElo "2563"]
[BlackElo "2172"]
[TimeControl "180+1"]
[EndTime "14:05:55 PDT"]
[Termination "SchachmattTV_Tobi won by resignation"]

1. e4 {[%clk 0:02:38.2]} 1... c5 {[%clk 0:02:49.4]} 2. Nc3 {[%clk 0:02:33.4]}
2... d6 {[%clk 0:02:38.5]} 3. g3 {[%clk 0:02:33.1]} 3... Nf6 {[%clk 0:02:37.2]}
4. Bg2 {[%clk 0:02:31.1]} 4... Nc6 {[%clk 0:02:19.4]} 5. d3 {[%clk 0:02:28.8]}
5... Bg4 {[%clk 0:02:17.7]} 6. f3 {[%clk 0:02:21.5]} 6... Bh5 {[%clk 0:02:15.1]}
7. g4 {[%clk 0:02:13.4]} 7... Bg6 {[%clk 0:02:13.4]} 8. h4 {[%clk 0:02:13.8]}
8... h5 {[%clk 0:02:12]} 9. g5 {[%clk 0:02:13.9]} 9... Nd7 {[%clk 0:02:10.9]}
10. f4 {[%clk 0:02:12]} 10... e6 {[%clk 0:02:06.3]} 11. Nge2 {[%clk 0:02:11.8]}
11... Nb6 {[%clk 0:01:59.9]} 12. Ng3 {[%clk 0:02:06.3]} 12... d5 {[%clk
0:01:53.2]} 13. O-O {[%clk 0:01:34.2]} 13... Rc8 {[%clk 0:00:42.9]} 14. f5
{[%clk 0:01:33.6]} 14... exf5 {[%clk 0:00:41.1]} 15. exf5 {[%clk 0:01:34.5]}
15... Bh7 {[%clk 0:00:41.4]} 16. Qxh5 {[%clk 0:01:21.6]} 16... g6 {[%clk
0:00:30.3]} 17. fxg6 {[%clk 0:01:19.8]} 17... fxg6 {[%clk 0:00:23.9]} 18. Qf3
{[%clk 0:01:09.9]} 18... Qd7 {[%clk 0:00:21.8]} 19. Bf4 {[%clk 0:01:06.2]} 19...
Be7 {[%clk 0:00:20.1]} 20. Rae1 {[%clk 0:01:02.6]} 20... O-O {[%clk 0:00:19.9]}
21. Nxd5 {[%clk 0:00:57.1]} 21... Nxd5 {[%clk 0:00:19.5]} 22. Qxd5+ {[%clk
0:00:58]} 22... Qxd5 {[%clk 0:00:19]} 23. Bxd5+ {[%clk 0:00:58.9]} 23... Kh8
{[%clk 0:00:19]} 24. Bxc6 {[%clk 0:00:59.5]} 24... Rxc6 {[%clk 0:00:13.2]} 25.
Rxe7 {[%clk 0:01:00]} 25... Bg8 {[%clk 0:00:11.9]} 26. Be5+ {[%clk 0:01:00.1]}
1-0

[Event "Late-Titled-Tuesday-Blitz-October-10-2023"]
[Site "Chess.com"]
[Date "2023.10.10"]
[Round "1"]
[White "jaskol95"]
[Black "ferrufino64"]
[Result "1-0"]
[WhiteElo "2580"]
[BlackElo "2213"]
[TimeControl "180+1"]
[EndTime "14:05:58 PDT"]
[Termination "jaskol95 won by resignation"]

1. d4 {[%clk 0:02:51.2]} 1... d5 {[%clk 0:02:59.6]} 2. Nc3 {[%clk 0:02:50.2]}
2... Nf6 {[%clk 0:02:58.8]} 3. Bf4 {[%clk 0:02:50.5]} 3... e6 {[%clk 0:02:57.7]}
4. Nb5 {[%clk 0:02:50.3]} 4... Na6 {[%clk 0:02:53.3]} 5. e3 {[%clk 0:02:50.7]}
5... c6 {[%clk 0:02:49.9]} 6. Nc3 {[%clk 0:02:50.9]} 6... Nc7 {[%clk 0:02:47.9]}
7. Nf3 {[%clk 0:02:48]} 7... Bd6 {[%clk 0:02:47.6]} 8. Ne5 {[%clk 0:02:47.5]}
8... O-O {[%clk 0:02:42.4]} 9. Bd3 {[%clk 0:02:47.5]} 9... c5 {[%clk 0:02:42.6]}
10. dxc5 {[%clk 0:02:34.3]} 10... Bxc5 {[%clk 0:02:34]} 11. Qf3 {[%clk
0:02:34.3]} 11... d4 {[%clk 0:02:18.9]} 12. exd4 {[%clk 0:02:31.4]} 12... Bxd4
{[%clk 0:02:19.1]} 13. O-O {[%clk 0:02:27.4]} 13... Bxc3 {[%clk 0:02:12.6]} 14.
bxc3 {[%clk 0:02:26.8]} 14... Ncd5 {[%clk 0:02:11.5]} 15. Bg5 {[%clk 0:02:15]}
15... h6 {[%clk 0:02:11.2]} 16. Bh4 {[%clk 0:02:14.8]} 16... g5 {[%clk
0:02:10.8]} 17. Bg3 {[%clk 0:02:13.5]} 17... Kg7 {[%clk 0:02:03.9]} 18. h4
{[%clk 0:01:57.2]} 18... Rg8 {[%clk 0:01:24.4]} 19. hxg5 {[%clk 0:01:55.2]}
19... hxg5 {[%clk 0:01:24.5]} 20. Rfe1 {[%clk 0:01:32.4]} 20... Kf8 {[%clk
0:01:18.7]} 21. c4 {[%clk 0:01:28]} 21... Nb4 {[%clk 0:01:08.1]} 22. Rad1 {[%clk
0:01:26.2]} 22... Qe7 {[%clk 0:01:02.4]} 23. c3 {[%clk 0:01:06.6]} 23... Nc6
{[%clk 0:00:58.6]} 24. Nxc6 {[%clk 0:00:47.3]} 24... bxc6 {[%clk 0:00:57.2]} 25.
Bh7 {[%clk 0:00:41.4]} 25... Kg7 {[%clk 0:00:40.7]} 26. Bxg8 {[%clk 0:00:36.7]}
26... Nxg8 {[%clk 0:00:40.8]} 27. Bd6 {[%clk 0:00:32.9]} 27... Qf6 {[%clk
0:00:39.5]} 28. Be5 {[%clk 0:00:33]} 1-0

[Event "Late-Titled-Tuesday-Blitz-October-10-2023"]
[Site "Chess.com"]
[Date "2023.10.10"]
[Round "1"]
[White "IlanSchnaider"]
[Black "stasOR4ik"]
[Result "1-0"]
[WhiteElo "2786"]
[BlackElo "2421"]
[TimeControl "180+1"]
[EndTime "14:06:01 PDT"]
[Termination "IlanSchnaider won by checkmate"]

1. e4 {[%clk 0:03:00.3]} 1... e6 {[%clk 0:02:59.7]} 2. d4 {[%clk 0:03:00.2]}
2... d5 {[%clk 0:03:00.6]} 3. Nd2 {[%clk 0:03:00.5]} 3... dxe4 {[%clk
0:03:00.7]} 4. Nxe4 {[%clk 0:03:00.8]} 4... Nf6 {[%clk 0:03:01.6]} 5. Bd3 {[%clk
0:02:59.9]} 5... Bd7 {[%clk 0:02:46.5]} 6. Nf3 {[%clk 0:02:56.7]} 6... Bc6
{[%clk 0:02:46.3]} 7. Ng3 {[%clk 0:02:55.3]} 7... h5 {[%clk 0:02:45.2]} 8. Bg5
{[%clk 0:02:50.1]} 8... Be7 {[%clk 0:02:43.4]} 9. h4 {[%clk 0:02:33]} 9... Ng4
{[%clk 0:02:37.4]} 10. c3 {[%clk 0:02:30.3]} 10... Nd7 {[%clk 0:02:31.5]} 11.
Qd2 {[%clk 0:02:28.8]} 11... Ndf6 {[%clk 0:02:14.6]} 12. O-O-O {[%clk
0:02:18.8]} 12... a5 {[%clk 0:02:04.7]} 13. Rhe1 {[%clk 0:02:12]} 13... a4
{[%clk 0:01:59.6]} 14. Ne5 {[%clk 0:02:04.3]} 14... Qd5 {[%clk 0:01:34.9]} 15.
Kb1 {[%clk 0:01:57.9]} 15... Qxg2 {[%clk 0:01:33.2]} 16. Nxc6 {[%clk 0:01:50.9]}
16... bxc6 {[%clk 0:01:32.8]} 17. Re2 {[%clk 0:01:47.1]} 17... Rb8 {[%clk
0:01:20.9]} 18. Ka1 {[%clk 0:01:44.3]} 18... Qd5 {[%clk 0:00:59.3]} 19. Ne4
{[%clk 0:01:37.3]} 19... Nxe4 {[%clk 0:00:35.1]} 20. Bxe4 {[%clk 0:01:38.2]}
20... Qb5 {[%clk 0:00:27]} 21. c4 {[%clk 0:01:32]} 21... Bxg5 {[%clk 0:00:20.6]}
22. hxg5 {[%clk 0:01:26.3]} 22... Qb4 {[%clk 0:00:18.4]} 23. Bxc6+ {[%clk
0:01:24.6]} 23... Kf8 {[%clk 0:00:17.8]} 24. Qf4 {[%clk 0:01:18]} 24... Qd6
{[%clk 0:00:17.9]} 25. Qe4 {[%clk 0:01:12.8]} 25... a3 {[%clk 0:00:16.5]} 26. b3
{[%clk 0:01:09.5]} 26... e5 {[%clk 0:00:13.7]} 27. Bd5 {[%clk 0:01:04.1]} 27...
exd4 {[%clk 0:00:12.5]} 28. Qf5 {[%clk 0:01:04]} 28... g6 {[%clk 0:00:08.4]} 29.
Qxf7# {[%clk 0:01:03.6]} 1-0

[Event "Late-Titled-Tuesday-Blitz-October-10-2023"]
[Site "Chess.com"]
[Date "2023.10.10"]
[Round "1"]
[White "chessisveryfun1264"]
[Black "lluiss"]
[Result "1-0"]
[WhiteElo "2583"]
[BlackElo "2218"]
[TimeControl "180+1"]
[EndTime "14:06:09 PDT"]
[Termination "chessisveryfun1264 won on time"]

1. Nf3 {[%clk 0:02:59.1]} 1... Nf6 {[%clk 0:02:59.1]} 2. g3 {[%clk 0:02:58.7]}
2... g6 {[%clk 0:02:59.1]} 3. Bg2 {[%clk 0:02:51.9]} 3... Bg7 {[%clk 0:02:59.4]}
4. O-O {[%clk 0:02:52.8]} 4... O-O {[%clk 0:02:59.3]} 5. b3 {[%clk 0:02:53.5]}
5... Ne4 {[%clk 0:02:56.6]} 6. d4 {[%clk 0:02:52.9]} 6... d5 {[%clk 0:02:56.6]}
7. c4 {[%clk 0:02:50.4]} 7... e6 {[%clk 0:02:48.7]} 8. Bb2 {[%clk 0:02:41.7]}
8... c5 {[%clk 0:02:48.5]} 9. Qc2 {[%clk 0:02:19.2]} 9... Nc6 {[%clk 0:02:20.6]}
10. cxd5 {[%clk 0:02:06.7]} 10... exd5 {[%clk 0:02:11.7]} 11. dxc5 {[%clk
0:02:04]} 11... Bxb2 {[%clk 0:02:10.1]} 12. Qxb2 {[%clk 0:01:59.3]} 12... Nxc5
{[%clk 0:02:10.5]} 13. Rd1 {[%clk 0:01:59.4]} 13... Be6 {[%clk 0:02:04.3]} 14.
Nc3 {[%clk 0:01:50]} 14... d4 {[%clk 0:01:20.1]} 15. Nb5 {[%clk 0:01:38.2]}
15... d3 {[%clk 0:01:19.9]} 16. exd3 {[%clk 0:01:36.7]} 16... Nxd3 {[%clk
0:00:50.1]} 17. Qe2 {[%clk 0:01:33.7]} 17... Bf5 {[%clk 0:00:48.7]} 18. g4
{[%clk 0:01:33.3]} 18... Re8 {[%clk 0:00:48.6]} 19. Qf1 {[%clk 0:01:30.6]} 19...
a6 {[%clk 0:00:44.6]} 20. gxf5 {[%clk 0:01:29.7]} 20... axb5 {[%clk 0:00:42.2]}
21. Qxd3 {[%clk 0:01:29.3]} 21... Qf6 {[%clk 0:00:41]} 22. fxg6 {[%clk 0:01:29]}
22... hxg6 {[%clk 0:00:40.6]} 23. Nd4 {[%clk 0:01:28.3]} 23... Rad8 {[%clk
0:00:39.4]} 24. Bxc6 {[%clk 0:01:18.2]} 24... bxc6 {[%clk 0:00:39.6]} 25. Qf3
{[%clk 0:01:18.9]} 25... Qg5+ {[%clk 0:00:37.5]} 26. Qg3 {[%clk 0:01:18.7]}
26... Qf6 {[%clk 0:00:34.6]} 27. Nc2 {[%clk 0:01:16.5]} 27... Qb2 {[%clk
0:00:33.5]} 28. Ne3 {[%clk 0:01:15]} 28... Rxd1+ {[%clk 0:00:31.9]} 29. Rxd1
{[%clk 0:01:15.9]} 29... Qxa2 {[%clk 0:00:32.1]} 30. Ng4 {[%clk 0:01:14.9]}
30... Qb2 {[%clk 0:00:23.5]} 31. Qf3 {[%clk 0:01:12]} 31... Re6 {[%clk
0:00:22.7]} 32. Rd8+ {[%clk 0:01:09.4]} 32... Kg7 {[%clk 0:00:22.3]} 33. Qh3
{[%clk 0:01:09.6]} 1-0

[Event "Late-Titled-Tuesday-Blitz-October-10-2023"]
[Site "Chess.com"]
[Date "2023.10.10"]
[Round "1"]
[White "Druid24"]
[Black "rochaaaaaaaaaa"]
[Result "1-0"]
[WhiteElo "2717"]
[BlackElo "2398"]
[TimeControl "180+1"]
[EndTime "14:06:14 PDT"]
[Termination "Druid24 won by resignation"]

1. d4 {[%clk 0:03:00.9]} 1... d5 {[%clk 0:02:57.8]} 2. Nf3 {[%clk 0:03:00.9]}
2... Nf6 {[%clk 0:02:57.6]} 3. c4 {[%clk 0:03:01.3]} 3... e6 {[%clk 0:02:57.2]}
4. Nc3 {[%clk 0:03:01.9]} 4... dxc4 {[%clk 0:02:56.9]} 5. e4 {[%clk 0:03:01.7]}
5... b5 {[%clk 0:02:57]} 6. e5 {[%clk 0:03:00.5]} 6... Nd5 {[%clk 0:02:56.4]} 7.
Nxb5 {[%clk 0:02:57.8]} 7... Nb6 {[%clk 0:02:56.8]} 8. Nc3 {[%clk 0:02:57.2]}
8... Nc6 {[%clk 0:02:54.7]} 9. Be2 {[%clk 0:02:57.5]} 9... Be7 {[%clk
0:02:53.8]} 10. O-O {[%clk 0:02:57.7]} 10... O-O {[%clk 0:02:53]} 11. Qd2 {[%clk
0:02:57.7]} 11... Bb7 {[%clk 0:02:40.6]} 12. Qf4 {[%clk 0:02:56.3]} 12... Qd7
{[%clk 0:02:29.2]} 13. Qg3 {[%clk 0:02:52.8]} 13... Rfd8 {[%clk 0:02:25.2]} 14.
Bh6 {[%clk 0:02:45]} 14... Bf8 {[%clk 0:02:23.6]} 15. Rad1 {[%clk 0:02:44.8]}
15... Ne7 {[%clk 0:02:19.1]} 16. Qg4 {[%clk 0:02:43.9]} 16... Nf5 {[%clk
0:02:13.5]} 17. Bg5 {[%clk 0:02:43.7]} 17... Re8 {[%clk 0:01:51.3]} 18. Ne4
{[%clk 0:02:38.8]} 18... Bxe4 {[%clk 0:01:45.7]} 19. Qxe4 {[%clk 0:02:39.7]}
19... Rab8 {[%clk 0:01:36]} 20. g4 {[%clk 0:02:02.5]} 20... Ne7 {[%clk
0:01:34.9]} 21. Bc1 {[%clk 0:01:59.2]} 21... Ned5 {[%clk 0:01:26.5]} 22. Ng5
{[%clk 0:01:57.2]} 22... g6 {[%clk 0:01:26.6]} 23. Qf3 {[%clk 0:01:52.5]} 23...
Bg7 {[%clk 0:01:12.8]} 24. Qh3 {[%clk 0:01:50.9]} 24... h6 {[%clk 0:01:10.7]}
25. Ne4 {[%clk 0:01:50.7]} 25... g5 {[%clk 0:01:01.6]} 26. f4 {[%clk 0:01:45.4]}
26... Nxf4 {[%clk 0:00:59.1]} 27. Bxf4 {[%clk 0:01:44.3]} 27... gxf4 {[%clk
0:00:59.4]} 28. g5 {[%clk 0:01:45.2]} 28... hxg5 {[%clk 0:00:55.8]} 29. Nxg5
{[%clk 0:01:43.9]} 29... Nd5 {[%clk 0:00:52.9]} 30. Bxc4 {[%clk 0:01:37.7]}
30... Ne3 {[%clk 0:00:48.4]} 31. Rxf4 {[%clk 0:01:35.3]} 31... Nxd1 {[%clk
0:00:44.7]} 32. Qh7+ {[%clk 0:01:27.7]} 32... Kf8 {[%clk 0:00:44.1]} 33. Qh5
{[%clk 0:01:24.5]} 33... Re7 {[%clk 0:00:31.9]} 34. Nh7+ {[%clk 0:01:08.4]}
34... Kg8 {[%clk 0:00:29.2]} 35. Nf6+ {[%clk 0:01:09.3]} 35... Bxf6 {[%clk
0:00:29.3]} 36. exf6 {[%clk 0:01:05.1]} 1-0

[Event "Late-Titled-Tuesday-Blitz-October-10-2023"]
[Site "Chess.com"]
[Date "2023.10.10"]
[Round "1"]
[White "frederiksvane"]
[Black "RIPOL"]
[Result "1-0"]
[WhiteElo "2891"]
[BlackElo "2459"]
[TimeControl "180+1"]
[EndTime "14:06:15 PDT"]
[Termination "frederiksvane won by resignation"]

1. a3 {[%clk 0:02:58.7]} 1... d5 {[%clk 0:02:53.7]} 2. Nf3 {[%clk 0:02:59.1]}
2... Nf6 {[%clk 0:02:52.7]} 3. e3 {[%clk 0:02:59.3]} 3... e6 {[%clk 0:02:50.4]}
4. c4 {[%clk 0:02:56.3]} 4... Be7 {[%clk 0:02:49.8]} 5. Nc3 {[%clk 0:02:55.9]}
5... O-O {[%clk 0:02:49.4]} 6. b4 {[%clk 0:02:55.5]} 6... c6 {[%clk 0:02:48.2]}
7. Bb2 {[%clk 0:02:55.5]} 7... Nbd7 {[%clk 0:02:46]} 8. d4 {[%clk 0:02:55.8]}
8... dxc4 {[%clk 0:02:39.6]} 9. Bxc4 {[%clk 0:02:55.5]} 9... b5 {[%clk
0:02:38.8]} 10. Bd3 {[%clk 0:02:52.9]} 10... a5 {[%clk 0:02:38.1]} 11. bxa5
{[%clk 0:02:51.4]} 11... Qxa5 {[%clk 0:02:32.9]} 12. O-O {[%clk 0:02:51.5]}
12... Bb7 {[%clk 0:02:11.5]} 13. Qe2 {[%clk 0:02:41.6]} 13... Bd6 {[%clk
0:01:56.8]} 14. Ng5 {[%clk 0:02:38.1]} 14... Qd8 {[%clk 0:01:15.7]} 15. Nge4
{[%clk 0:02:30]} 15... Nxe4 {[%clk 0:01:12.5]} 16. Nxe4 {[%clk 0:02:30.9]} 16...
Be7 {[%clk 0:01:12.3]} 17. Rfc1 {[%clk 0:02:29]} 17... Qb6 {[%clk 0:01:08.3]}
18. Qc2 {[%clk 0:01:56.1]} 18... h6 {[%clk 0:01:03.2]} 19. Qb3 {[%clk
0:01:35.2]} 19... Ba6 {[%clk 0:00:39.7]} 20. Qc3 {[%clk 0:01:22.7]} 20... Rfc8
{[%clk 0:00:30]} 21. d5 {[%clk 0:01:17.8]} 21... Bf8 {[%clk 0:00:21.2]} 22. dxc6
{[%clk 0:01:14.9]} 22... Nb8 {[%clk 0:00:18.7]} 23. c7 {[%clk 0:01:07.4]} 23...
Nd7 {[%clk 0:00:18.4]} 24. Qc6 {[%clk 0:00:33.5]} 24... Ra7 {[%clk 0:00:18.1]}
25. Qxd7 {[%clk 0:00:31.9]} 1-0

[Event "Late-Titled-Tuesday-Blitz-October-10-2023"]
[Site "Chess.com"]
[Date "2023.10.10"]
[Round "1"]
[White "AleksandrAleksikov"]
[Black "aa175"]
[Result "0-1"]
[WhiteElo "2263"]
[BlackElo "2606"]
[TimeControl "180+1"]
[EndTime "14:06:19 PDT"]
[Termination "aa175 won on time"]

1. e4 {[%clk 0:02:59]} 1... c5 {[%clk 0:02:57.3]} 2. Nf3 {[%clk 0:02:57.7]} 2...
d6 {[%clk 0:02:56.6]} 3. d4 {[%clk 0:02:57.3]} 3... Nf6 {[%clk 0:02:57.3]} 4.
Nc3 {[%clk 0:02:55.4]} 4... cxd4 {[%clk 0:02:57.7]} 5. Nxd4 {[%clk 0:02:54.1]}
5... a6 {[%clk 0:02:58.3]} 6. Be2 {[%clk 0:02:53.5]} 6... e6 {[%clk 0:02:47]} 7.
Be3 {[%clk 0:02:48.8]} 7... Nbd7 {[%clk 0:02:41.1]} 8. a4 {[%clk 0:02:45]} 8...
b6 {[%clk 0:02:36.8]} 9. Qd2 {[%clk 0:02:42.2]} 9... Bb7 {[%clk 0:02:37]} 10. f3
{[%clk 0:02:42]} 10... Rc8 {[%clk 0:02:36.6]} 11. O-O {[%clk 0:02:38]} 11... Be7
{[%clk 0:02:33.9]} 12. Kh1 {[%clk 0:02:36.5]} 12... O-O {[%clk 0:02:27.8]} 13.
Rad1 {[%clk 0:02:34.8]} 13... Ne5 {[%clk 0:02:22.2]} 14. Qe1 {[%clk 0:02:33.6]}
14... Qc7 {[%clk 0:02:16.6]} 15. Bc1 {[%clk 0:02:21.9]} 15... Rfd8 {[%clk
0:02:11]} 16. Rf2 {[%clk 0:02:20.1]} 16... Nc4 {[%clk 0:01:59.4]} 17. Qf1 {[%clk
0:02:17.5]} 17... d5 {[%clk 0:01:53.1]} 18. exd5 {[%clk 0:02:09.1]} 18... Nxd5
{[%clk 0:01:54]} 19. Nxd5 {[%clk 0:02:07.7]} 19... Rxd5 {[%clk 0:01:53.3]} 20.
b3 {[%clk 0:02:05.6]} 20... Na5 {[%clk 0:01:19.1]} 21. Bb2 {[%clk 0:01:18.4]}
21... Bc5 {[%clk 0:01:11.4]} 22. Qe1 {[%clk 0:00:42]} 22... Rcd8 {[%clk
0:00:58.4]} 23. c3 {[%clk 0:00:27.8]} 23... Nxb3 {[%clk 0:00:54.7]} 24. Bc4
{[%clk 0:00:22.1]} 24... Bxd4 {[%clk 0:00:48]} 25. Bxd5 {[%clk 0:00:20.7]} 25...
Bxf2 {[%clk 0:00:48.2]} 26. Qxf2 {[%clk 0:00:17.3]} 26... Rxd5 {[%clk
0:00:48.9]} 27. Rxd5 {[%clk 0:00:11.1]} 27... Bxd5 {[%clk 0:00:49.8]} 28. Qc2
{[%clk 0:00:07.4]} 28... Qc4 {[%clk 0:00:49]} 0-1

[Event "Late-Titled-Tuesday-Blitz-October-10-2023"]
[Site "Chess.com"]
[Date "2023.10.10"]
[Round "1"]
[White "santosalberto1987"]
[Black "tptagain"]
[Result "0-1"]
[WhiteElo "2453"]
[BlackElo "2875"]
[TimeControl "180+1"]
[EndTime "14:06:27 PDT"]
[Termination "tptagain won by resignation"]

1. e4 {[%clk 0:02:59.1]} 1... c5 {[%clk 0:02:59.8]} 2. Nf3 {[%clk 0:02:58]} 2...
Nc6 {[%clk 0:03:00.2]} 3. Nc3 {[%clk 0:02:57.8]} 3... d6 {[%clk 0:02:58.7]} 4.
d4 {[%clk 0:02:55.8]} 4... cxd4 {[%clk 0:02:59]} 5. Nxd4 {[%clk 0:02:56.7]} 5...
e5 {[%clk 0:02:59.5]} 6. Ndb5 {[%clk 0:02:56.8]} 6... a6 {[%clk 0:02:58.8]} 7.
Na3 {[%clk 0:02:56.9]} 7... Be6 {[%clk 0:02:59.3]} 8. Nc4 {[%clk 0:02:56.1]}
8... Rb8 {[%clk 0:02:59.9]} 9. Ne3 {[%clk 0:02:54.7]} 9... g6 {[%clk 0:02:54.7]}
10. Ned5 {[%clk 0:02:49.3]} 10... Bg7 {[%clk 0:02:51.2]} 11. Be3 {[%clk
0:02:47.4]} 11... b5 {[%clk 0:02:49.8]} 12. a3 {[%clk 0:02:45.8]} 12... Nf6
{[%clk 0:02:46.1]} 13. Nxf6+ {[%clk 0:02:43.8]} 13... Bxf6 {[%clk 0:02:44.7]}
14. Qd2 {[%clk 0:02:36.9]} 14... O-O {[%clk 0:02:42]} 15. Nd5 {[%clk 0:02:37]}
15... Bg7 {[%clk 0:02:41.8]} 16. c3 {[%clk 0:02:35.2]} 16... f5 {[%clk
0:02:39.6]} 17. exf5 {[%clk 0:02:27.1]} 17... gxf5 {[%clk 0:02:38.5]} 18. f4
{[%clk 0:02:27.4]} 18... Na5 {[%clk 0:02:36.7]} 19. Rd1 {[%clk 0:02:24.4]} 19...
Kh8 {[%clk 0:01:58.6]} 20. Be2 {[%clk 0:02:23.7]} 20... Nc4 {[%clk 0:01:58.9]}
21. Bxc4 {[%clk 0:02:21.1]} 21... bxc4 {[%clk 0:01:59.8]} 22. O-O {[%clk
0:02:15.2]} 22... Qd7 {[%clk 0:01:51.6]} 23. Nb6 {[%clk 0:01:56.2]} 23... Qb5
{[%clk 0:01:31.3]} 24. Qxd6 {[%clk 0:01:54.5]} 24... exf4 {[%clk 0:01:31.8]} 25.
Bxf4 {[%clk 0:01:47.7]} 25... Rxb6 {[%clk 0:01:25.6]} 26. Qe7 {[%clk 0:01:40.5]}
26... Re8 {[%clk 0:01:24.6]} 27. Qg5 {[%clk 0:01:34.2]} 27... Bd5 {[%clk
0:01:20.2]} 28. Qxf5 {[%clk 0:01:30.8]} 28... Be4 {[%clk 0:01:13.7]} 29. Qh3
{[%clk 0:00:58.3]} 29... Rg6 {[%clk 0:01:08.9]} 30. Bg3 {[%clk 0:00:57.2]} 30...
Qxb2 {[%clk 0:01:05.3]} 31. Rf2 {[%clk 0:00:51.3]} 31... Qb6 {[%clk 0:01:03.2]}
32. Kh1 {[%clk 0:00:49.8]} 32... Bxc3 {[%clk 0:00:57]} 33. Rf7 {[%clk 0:00:47]}
33... Bg7 {[%clk 0:00:55.1]} 34. Qd7 {[%clk 0:00:34.4]} 34... Qc6 {[%clk
0:00:50.2]} 0-1

[Event "Late-Titled-Tuesday-Blitz-October-10-2023"]
[Site "Chess.com"]
[Date "2023.10.10"]
[Round "1"]
[White "cthake"]
[Black "GoldenShare"]
[Result "0-1"]
[WhiteElo "1964"]
[BlackElo "2532"]
[TimeControl "180+1"]
[EndTime "14:06:28 PDT"]
[Termination "GoldenShare won by resignation"]

1. e4 {[%clk 0:03:00.9]} 1... e6 {[%clk 0:02:58.8]} 2. d4 {[%clk 0:03:00]} 2...
d5 {[%clk 0:02:41.1]} 3. Nc3 {[%clk 0:02:59.5]} 3... Nc6 {[%clk 0:02:34.2]} 4.
e5 {[%clk 0:02:57.2]} 4... Nge7 {[%clk 0:02:28.3]} 5. Nf3 {[%clk 0:02:54.1]}
5... b6 {[%clk 0:02:24.3]} 6. Be2 {[%clk 0:02:44.8]} 6... Bb7 {[%clk 0:02:18.6]}
7. O-O {[%clk 0:02:44.3]} 7... Qd7 {[%clk 0:02:18.2]} 8. a3 {[%clk 0:02:33.5]}
8... h6 {[%clk 0:02:10]} 9. h3 {[%clk 0:02:31.1]} 9... Na5 {[%clk 0:02:03.2]}
10. b3 {[%clk 0:02:19.1]} 10... g5 {[%clk 0:02:02.6]} 11. Bb5 {[%clk 0:02:04.9]}
11... Nac6 {[%clk 0:02:02.1]} 12. a4 {[%clk 0:02:03]} 12... a6 {[%clk
0:02:01.4]} 13. Bd3 {[%clk 0:02:00.7]} 13... Nb4 {[%clk 0:02:00]} 14. Be2 {[%clk
0:01:52.3]} 14... Bg7 {[%clk 0:01:54.5]} 15. Ba3 {[%clk 0:01:48.9]} 15... a5
{[%clk 0:01:54.6]} 16. Nb5 {[%clk 0:01:32.4]} 16... Nf5 {[%clk 0:01:46.1]} 17.
c3 {[%clk 0:01:30.8]} 17... Nc6 {[%clk 0:01:46.2]} 18. Qd2 {[%clk 0:01:26.7]}
18... Nce7 {[%clk 0:01:46]} 19. Rac1 {[%clk 0:01:22.2]} 19... Ng6 {[%clk
0:01:40.6]} 20. c4 {[%clk 0:01:19]} 20... dxc4 {[%clk 0:01:38.3]} 21. Rxc4
{[%clk 0:01:17.4]} 21... Rc8 {[%clk 0:01:33.2]} 22. Rd1 {[%clk 0:01:02.3]} 22...
Nf4 {[%clk 0:01:33.2]} 23. d5 {[%clk 0:00:51.6]} 23... Bxd5 {[%clk 0:01:28.2]}
24. Kh2 {[%clk 0:00:41]} 24... Nxe2 {[%clk 0:01:24.4]} 25. Qxe2 {[%clk
0:00:40.6]} 25... c5 {[%clk 0:01:13.4]} 26. Rcc1 {[%clk 0:00:34.6]} 26... O-O
{[%clk 0:01:05.2]} 27. g4 {[%clk 0:00:33.6]} 27... Nd4 {[%clk 0:01:03.8]} 28.
Nfxd4 {[%clk 0:00:33.4]} 28... cxd4 {[%clk 0:01:04.7]} 29. Nxd4 {[%clk
0:00:33.3]} 29... Rxc1 {[%clk 0:01:03.3]} 30. Bxf8 {[%clk 0:00:30.8]} 30... Rxd1
{[%clk 0:01:01]} 31. Qxd1 {[%clk 0:00:30.2]} 31... Bxe5+ {[%clk 0:00:58]} 32.
Kg1 {[%clk 0:00:23]} 32... Kxf8 {[%clk 0:00:58]} 33. Nf3 {[%clk 0:00:21.2]}
33... Qc7 {[%clk 0:00:55.2]} 34. Qe2 {[%clk 0:00:15.4]} 34... Bf4 {[%clk
0:00:50.6]} 35. Nd4 {[%clk 0:00:14]} 35... Qc1+ {[%clk 0:00:49.2]} 0-1

[Event "Late-Titled-Tuesday-Blitz-October-10-2023"]
[Site "Chess.com"]
[Date "2023.10.10"]
[Round "1"]
[White "alexrustemov"]
[Black "komogro"]
[Result "1-0"]
[WhiteElo "2851"]
[BlackElo "2446"]
[TimeControl "180+1"]
[EndTime "14:06:33 PDT"]
[Termination "alexrustemov won on time"]

1. d4 {[%clk 0:03:00.9]} 1... Nf6 {[%clk 0:03:00]} 2. c4 {[%clk 0:03:01.5]} 2...
g6 {[%clk 0:02:59.9]} 3. Nf3 {[%clk 0:03:02.1]} 3... Bg7 {[%clk 0:03:00.5]} 4.
g3 {[%clk 0:03:02.7]} 4... O-O {[%clk 0:03:00.7]} 5. Bg2 {[%clk 0:03:03.3]} 5...
d6 {[%clk 0:03:01.5]} 6. O-O {[%clk 0:03:03.8]} 6... Nbd7 {[%clk 0:03:02.4]} 7.
Nc3 {[%clk 0:03:04.3]} 7... c6 {[%clk 0:03:03.2]} 8. e4 {[%clk 0:03:04.6]} 8...
e5 {[%clk 0:03:03.9]} 9. h3 {[%clk 0:03:05.1]} 9... a5 {[%clk 0:03:04.1]} 10.
Be3 {[%clk 0:03:04.7]} 10... a4 {[%clk 0:03:00.9]} 11. Qc2 {[%clk 0:03:00.3]}
11... exd4 {[%clk 0:02:58.7]} 12. Nxd4 {[%clk 0:02:59.9]} 12... Nc5 {[%clk
0:02:58.3]} 13. Rfe1 {[%clk 0:02:57.3]} 13... Qa5 {[%clk 0:02:57.8]} 14. Rab1
{[%clk 0:02:50.8]} 14... Re8 {[%clk 0:02:57.7]} 15. b4 {[%clk 0:02:48.3]} 15...
axb3 {[%clk 0:02:57.8]} 16. axb3 {[%clk 0:02:49]} 16... Qb4 {[%clk 0:02:44.4]}
17. Bd2 {[%clk 0:02:47.9]} 17... Qb6 {[%clk 0:02:38.9]} 18. Be3 {[%clk
0:02:44.3]} 18... Qb4 {[%clk 0:02:38.6]} 19. Red1 {[%clk 0:02:31.8]} 19... Be6
{[%clk 0:02:05.3]} 20. Bd2 {[%clk 0:02:26.6]} 20... Qa3 {[%clk 0:02:04.9]} 21.
Bf4 {[%clk 0:02:19.3]} 21... Na6 {[%clk 0:01:48.1]} 22. Qb2 {[%clk 0:02:01.8]}
22... Qxb2 {[%clk 0:01:45.2]} 23. Rxb2 {[%clk 0:02:02.7]} 23... Rad8 {[%clk
0:01:33.4]} 24. Rbd2 {[%clk 0:01:58.8]} 24... Nh5 {[%clk 0:01:27.9]} 25. Be3
{[%clk 0:01:47.2]} 25... Nb4 {[%clk 0:01:25.5]} 26. Nde2 {[%clk 0:01:41.8]}
26... Ra8 {[%clk 0:00:45.4]} 27. g4 {[%clk 0:01:35.8]} 27... Nf6 {[%clk
0:00:45.2]} 28. Rxd6 {[%clk 0:01:33]} 28... Ra3 {[%clk 0:00:45.1]} 29. Rb1
{[%clk 0:01:32.4]} 29... Nd7 {[%clk 0:00:44]} 30. f4 {[%clk 0:01:29.1]} 30...
Bf8 {[%clk 0:00:44]} 31. Rd2 {[%clk 0:01:26.8]} 31... Bc5 {[%clk 0:00:44]} 32.
Nd4 {[%clk 0:01:22.8]} 32... f5 {[%clk 0:00:38.9]} 33. gxf5 {[%clk 0:01:15]}
33... Bxf5 {[%clk 0:00:34.8]} 34. Kf2 {[%clk 0:01:04.4]} 1-0